{"text_format":"1","workbook":"xlsx","n_sheets":4,"sheets":["Length","VBA","Filter","Manually"],"not_rendered":{"charts":0,"images":0,"macros":1,"external_links":0,"defined_names":1,"comments":0,"pivot_tables":0},"unopened":[],"bounds":{"document_bytes":16777216,"sheet_cells":100000,"rows_first":2000,"rows_last":500,"rows_between":2000,"halvings":0,"cell_chars":16384,"cell_head_chars":4096},"cells_cut":0,"cells_raw":0,"read":"whole","date_system":"1900"}

{"sheet":"Length","index":0,"n_rows":10,"n_cols":10,"rows_kept":10,"cut":false,"hidden":false,"merged":[[1,7,1,9],[2,1,2,4]]}
[]
[null,null,null,null,null,null,null,"For Practice"]
[null,"Making Empty Cells Blank"]
[null,null,null,null,null,null,null,"Product","Sold","Length"]
[null,"Product","Sold","Blank","Length of Cells in Column C",null,null,"Shampoo",12]
[null,"Shampoo",12,{"$f":"ISBLANK(C6)","v":false},{"$f":"LEN(C6)","v":2},null,null,"Conditioner","   "]
[null,"Conditioner",null,{"$f":"ISBLANK(C7)","v":true},{"$f":"LEN(C7)","v":0},null,null,"Face Wash",9]
[null,"Face Wash",102,{"$f":"ISBLANK(C8)","v":false},{"$f":"LEN(C8)","v":3},null,null,"Baby Powder",25]
[null,"Baby Powder",25,{"$f":"ISBLANK(C9)","v":false},{"$f":"LEN(C9)","v":2},null,null,"Day Cream","   "]
[null,"Day Cream","        ",{"$f":"ISBLANK(C10)","v":false},{"$f":"LEN(C10)","v":8}]

{"sheet":"VBA","index":1,"n_rows":10,"n_cols":9,"rows_kept":10,"cut":false,"hidden":false,"merged":[[1,7,1,8],[2,1,2,3]]}
[]
[null,null,null,null,null,null,null,"For Practice"]
[null,"Making Empty Cells Blank"]
[null,null,null,null,null,null,null,"Product","Sold"]
[null,"Product","Sold","Blank",null,null,null,"Shampoo",12]
[null,"Lipstick",12,false,null,null,null,"Conditioner"]
[null,"Conditioner",null,true,null,null,null,"Face Wash",9]
[null,"Face Wash",9,false,null,null,null,"Baby Powder",25]
[null,"Shower Gel",25,false,null,null,null,"Day Cream"]
[null,"Powder",null,true]

{"sheet":"Filter","index":2,"n_rows":10,"n_cols":9,"rows_kept":10,"cut":false,"hidden":false,"merged":[[1,7,1,8],[2,1,2,3]]}
[]
[null,null,null,null,null,null,null,"For Practice"]
[null,"Making Empty Cells Blank"]
[null,null,null,null,null,null,null,"Product","Sold"]
[null,"Product","Sold","Blank",null,null,null,"Shampoo",12]
[null,"Lipstick",12,{"$f":"ISBLANK(C6)","v":false},null,null,null,"Conditioner","   "]
[null,"Conditioner","   ",{"$f":"ISBLANK(C7)","v":false},null,null,null,"Face Wash",9]
[null,"Face Wash",9,false,null,null,null,"Baby Powder",25]
[null,"Shower Gel",25,false,null,null,null,"Day Cream","   "]
[null,"Powder","       ",false]

{"sheet":"Manually","index":3,"n_rows":10,"n_cols":9,"rows_kept":10,"cut":false,"hidden":false,"merged":[[1,7,1,8],[2,1,2,3]]}
[]
[null,null,null,null,null,null,null,"For Practice"]
[null,"Making Empty Cells Blank"]
[null,null,null,null,null,null,null,"Product","Sold"]
[null,"Product","Sold","Blank",null,null,null,"Shampoo",12]
[null,"Lipstick",12,{"$f":"ISBLANK(C6)","v":false},null,null,null,"Conditioner","   "]
[null,"Conditioner",null,{"$f":"ISBLANK(C7)","v":true},null,null,null,"Face Wash",9]
[null,"Face Wash",9,false,null,null,null,"Baby Powder",25]
[null,"Shower Gel",25,false,null,null,null,"Day Cream","   "]
[null,"Powder",null,true]